fUST/lending_fUST_20260118
["ID","MTS","AMOUNT","RATE_DAILY","PERIOD"]
[402383965,1768669882118,-500.0,0.00017534,3]
[402383967,1768669882128,-1003.82,0.00017534,3]
[402383968,1768669882136,-500.0,0.00017534,3]
[402383970,1768669882145,-977.84,0.00017534,3]
[402383971,1768669882154,-500.0,0.00017534,3]
[402383973,1768669882164,-562.12,0.00017534,3]
[402383975,1768669882173,-661.08,0.00017534,3]
[402383976,1768669882182,-500.0,0.00017534,3]
[402383978,1768669882191,-1342.63,0.00017534,3]
[402383979,1768669882200,-500.0,0.00017534,3]
[402383981,1768669882209,-546.74,0.00017534,3]
[402383983,1768669882218,-500.0,0.00017534,3]
[402383984,1768669882227,-500.0,0.00017534,3]
[402383986,1768669882236,-500.0,0.00017534,3]
[402383987,1768669882245,-500.0,0.00017534,3]
[402383989,1768669882254,-514.38,0.00017534,3]
[402383991,1768669882263,-528.91250035,0.00017534,3]
[402383992,1768669882272,-500.0,0.00017534,3]
[402383994,1768669882281,-500.0,0.00017534,3]
[402383995,1768669882290,-500.0,0.00017534,3]
[402383997,1768669882299,-530.24218336,0.00017534,3]
[402383998,1768669882307,-613.18,0.00017534,3]
[402384000,1768669882317,-500.0,0.00017534,3]
[402384002,1768669882326,-275.38497984,0.00017534,3]
[402384003,1768669882334,-500.0,0.00017534,3]
[402384005,1768669882343,-500.0,0.00017534,3]
[402384006,1768669882352,-500.0,0.00017534,3]
[402384008,1768669882361,-500.0,0.00017534,3]
[402384010,1768669882370,-1091.45,0.00017534,3]
[402384011,1768669882378,-453.08603643,0.00017534,3]
[402384013,1768669882387,-500.0,0.00017534,3]
[402384014,1768669882396,-843.1,0.00017534,3]
[402384016,1768669882405,-500.0,0.00017534,3]
[402384018,1768669882414,-500.0,0.00017534,3]
[402384019,1768669882423,-500.0,0.00017534,3]
[402384021,1768669882432,-500.0,0.00017534,3]
[402384022,1768669882442,-822.64,0.00017534,3]
[402384024,1768669882451,-527.73,0.00017534,3]
[402384026,1768669882460,-891.16,0.00017534,3]
[402384027,1768669882470,-1723.32,0.00017534,3]
[402384029,1768669882479,-500.0,0.00017534,3]
[402384030,1768669882487,-500.0,0.00017534,3]
[402384032,1768669882497,-500.0,0.00017534,3]
[402384034,1768669882506,-500.0,0.00017534,3]
[402384035,1768669882515,-500.0,0.00017534,3]
[402384037,1768669882524,-891.17,0.00017534,3]
[402384038,1768669882533,-756.73,0.00017534,3]
[402384040,1768669882542,-1663.41,0.00017534,3]
[402384041,1768669882550,-227.93902115,0.00017534,3]
[402384043,1768669882559,-500.0,0.00017534,3]
[402384045,1768669882570,-500.0,0.00017534,3]
[402384046,1768669882579,-975.35,0.00017534,3]
[402384048,1768669882588,-500.0,0.00017534,3]
[402384049,1768669882596,-500.0,0.00017534,3]
[402384051,1768669882605,-569.01,0.00017534,3]
[402384052,1768669882615,-500.0,0.00017534,3]
[402384054,1768669882624,-770.5,0.00017534,3]
[402384056,1768669882634,-500.0,0.00017534,3]
[402384057,1768669882643,-1208.54,0.00017534,3]
[402384059,1768669882652,-500.0,0.00017534,3]
[402384060,1768669882661,-632.16,0.00017534,3]
[402384062,1768669882670,-1521.64,0.00017534,3]
[402384064,1768669882679,-500.0,0.00017534,3]
[402384065,1768669882688,-500.0,0.00017534,3]
[402384067,1768669882697,-548.34,0.00017534,3]
[402384068,1768669882706,-1008.77,0.00017534,3]
[402384070,1768669882715,-500.0,0.00017534,3]
[402384071,1768669882724,-2004.45,0.00017534,3]
[402384073,1768669882734,-945.54,0.00017534,3]
[402384075,1768669882743,-601.7,0.00017534,3]
[402384076,1768669882751,-574.65,0.00017534,3]
[402384078,1768669882761,-1355.06,0.00017534,3]
[402384079,1768669882769,-600.66,0.00017534,3]
[402384081,1768669882779,-963.02,0.00017534,3]
[402384083,1768669882788,-619.79,0.00017534,3]
[402384084,1768669882797,-500.0,0.00017534,3]
[402384086,1768669882806,-1122.16,0.00017534,3]
[402384088,1768669882815,-500.0,0.00017534,3]
[402384089,1768669882824,-500.0,0.00017534,3]
[402384091,1768669882833,-500.0,0.00017534,3]
[402384092,1768669882843,-520.55,0.00017534,3]
[402384094,1768669882852,-980.93,0.00017534,3]
[402384096,1768669882861,-1043.62,0.00017534,3]
[402384097,1768669882869,-513.25,0.00017534,3]
[402384099,1768669882878,-914.72,0.00017534,3]
[402384100,1768669882887,-997.98,0.00017534,3]
[402384102,1768669882898,-500.0,0.00017534,3]
[402384104,1768669882907,-500.0,0.00017534,3]
[402384105,1768669882917,-1293.8,0.00017534,3]
[402384107,1768669882926,-500.0,0.00017534,3]
[402384108,1768669882935,-500.0,0.00017534,3]
[402384110,1768669882944,-1826.55,0.00017534,3]
[402384111,1768669882953,-649.67,0.00017534,3]
[402384113,1768669882963,-500.0,0.00017534,3]
[402384115,1768669882972,-500.0,0.00017534,3]
[402384116,1768669882982,-500.0,0.00017534,3]
[402384118,1768669882991,-500.0,0.00017534,3]
[402384119,1768669883000,-972.93,0.00017534,3]
[402384121,1768669883009,-500.0,0.00017534,3]
[402384123,1768669883018,-500.0,0.00017534,3]
[402384124,1768669883027,-500.0,0.00017534,3]
[402384126,1768669883037,-887.91,0.00017534,3]
[402384127,1768669883046,-873.02,0.00017534,3]
[402384129,1768669883056,-500.0,0.00017534,2]
[402384131,1768669883065,-500.0,0.00017534,3]
[402384132,1768669883075,-1225.73,0.00017534,3]
[402384134,1768669883085,-500.0,0.00017534,3]
[402384136,1768669883096,-1346.87,0.00017534,3]
[402384137,1768669883106,-500.0,0.00017534,3]
[402384139,1768669883117,-500.0,0.00017534,2]
[402384140,1768669883127,-540.9,0.00017534,3]
[402384142,1768669883137,-1000.0,0.00017534,2]
[402384144,1768669883147,-554.51009114,0.00017534,3]
[402384145,1768669883157,-853.74,0.00017534,3]
[402384147,1768669883169,-637.34,0.00017534,3]
[402384149,1768669883178,-500.0,0.00017534,3]
[402384150,1768669883188,-500.0,0.00017534,3]
[402384152,1768669883197,-500.0,0.00017534,3]
[402384154,1768669883209,-500.0,0.00017534,3]
[402384155,1768669883219,-500.0,0.00017534,3]
[402384157,1768669883228,-543.12,0.00017534,3]
[402384159,1768669883238,-874.93,0.00017534,3]
[402384161,1768669883248,-1510.5,0.00017534,3]
[402384163,1768669883258,-500.0,0.00017534,3]
[402384165,1768669883267,-510.23,0.00017534,3]
[402384168,1768669883277,-1075.6,0.00017534,3]
[402384170,1768669883286,-500.0,0.00017534,3]
[402384172,1768669883296,-500.0,0.00017534,3]
[402384174,1768669883306,-500.0,0.00017534,3]
[402384176,1768669883315,-500.0,0.00017534,3]
[402384178,1768669883325,-500.0,0.00017534,3]
[402384180,1768669883334,-1554.86,0.00017534,3]
[402384182,1768669883343,-500.0,0.00017534,3]
[402384184,1768669883353,-500.0,0.00017534,3]
[402384186,1768669883363,-500.0,0.00017534,3]
[402384188,1768669883372,-500.0,0.00017534,3]
[402384190,1768669883382,-516.86,0.00017534,3]
[402384192,1768669883391,-748.62,0.00017534,3]
[402384194,1768669883400,-1203.14,0.00017534,3]
[402384196,1768669883410,-500.0,0.00017534,3]
[402384198,1768669883420,-500.0,0.00017534,3]
[402384200,1768669883429,-500.0,0.00017534,3]
[402384202,1768669883439,-940.17,0.00017534,3]
[402384203,1768669883449,-907.89,0.00017534,3]
[402384204,1768669883459,-500.0,0.00017534,3]
[402384205,1768669883468,-500.0,0.00017534,3]
[402384206,1768669883478,-500.0,0.00017534,3]
[402384207,1768669883488,-500.0,0.00017534,3]
[402384208,1768669883498,-359.73801273,0.00017534,3]
[402384209,1768669883508,-1259.96,0.00017534,3]
[402384210,1768669883517,-962.36,0.00017534,3]
[402384211,1768669883527,-500.0,0.00017534,3]
[402384212,1768669883536,-500.0,0.00017534,3]
[402384213,1768669883546,-606.69,0.00017534,3]
[402384214,1768669883555,-500.0,0.00017534,3]
[402384215,1768669883566,-500.0,0.00017534,3]
[402384216,1768669883578,-1903.61,0.00017534,3]
[402384217,1768669883588,-500.0,0.00017534,3]
[402384218,1768669883598,-500.0,0.00017534,3]
[402384219,1768669883609,-500.0,0.00017534,3]
[402384220,1768669883619,-526.57336217,0.00017534,3]
[402384221,1768669883629,-500.0,0.00017534,3]
[402384222,1768669883639,-500.0,0.00017534,3]
[402384223,1768669883649,-1200.0,0.00017534,2]
[402384224,1768669883659,-500.0,0.00017534,3]
[402384225,1768669883669,-500.0,0.00017534,3]
[402384226,1768669883679,-500.0,0.00017534,3]
[402384227,1768669883688,-1317.86,0.00017534,3]
[402384228,1768669883698,-500.0,0.00017534,3]
[402384229,1768669883708,-500.0,0.00017534,3]
[402384230,1768669883718,-500.0,0.00017534,3]
[402384231,1768669883729,-500.0,0.00017534,3]
[402384232,1768669883739,-500.0,0.00017534,3]
[402384233,1768669883749,-1739.91,0.00017534,3]
[402384234,1768669883759,-1530.43,0.00017534,3]
[402384235,1768669883770,-719.6,0.00017534,3]
[402384236,1768669883780,-813.96,0.00017534,3]
[402384237,1768669883790,-500.0,0.00017534,3]
[402384238,1768669883800,-745.72,0.00017534,3]
[402384239,1768669883810,-284.7821744,0.00017534,3]
[402384240,1768669883821,-500.0,0.00017534,3]
[402384241,1768669883831,-676.17,0.00017534,3]
[402384242,1768669883841,-500.0,0.00017534,3]
[402384243,1768669883851,-635.29,0.00017534,3]
[402384244,1768669883861,-500.0,0.00017534,3]
[402384245,1768669883870,-611.98339815,0.00017534,3]
[402384246,1768669883881,-729.75,0.00017534,3]
[402384247,1768669883891,-500.0,0.00017534,3]
[402384248,1768669883901,-530.32,0.00017534,3]
[402384249,1768669883911,-500.0,0.00017534,3]
[402384251,1768669883921,-500.0,0.00017534,3]
[402384252,1768669883930,-500.0,0.00017534,3]
[402384253,1768669883941,-500.0,0.00017534,3]
[402384255,1768669883950,-806.08,0.00017534,3]
[402384256,1768669883960,-500.0,0.00017534,3]
[402384258,1768669883970,-500.0,0.00017534,3]
[402384259,1768669883979,-500.0,0.00017534,3]
[402384261,1768669883990,-500.0,0.00017534,3]
[402384263,1768669883999,-500.0,0.00017534,3]
[402384265,1768669884010,-500.0,0.00017534,3]
[402384267,1768669884021,-500.0,0.00017534,3]
[402384269,1768669884030,-500.0,0.00017534,3]
[402384271,1768669884041,-500.0,0.00017534,3]
[402384273,1768669884051,-775.08,0.00017534,3]
[402384276,1768669884061,-1108.08,0.00017534,3]
[402384278,1768669884071,-1138.7,0.00017534,3]
[402384279,1768669884081,-500.0,0.00017534,3]
[402384282,1768669884091,-1823.52,0.00017534,3]
[402384284,1768669884100,-500.0,0.00017534,3]
[402384286,1768669884109,-500.0,0.00017534,3]
[402384288,1768669884118,-834.18,0.00017534,3]
[402384290,1768669884127,-500.0,0.00017534,3]
[402384292,1768669884136,-364.90375644,0.00017534,3]
[402384294,1768669884146,-500.0,0.00017534,3]
[402384296,1768669884155,-500.0,0.00017534,3]
[402384298,1768669884164,-838.02,0.00017534,3]
[402384300,1768669884174,-639.48,0.00017534,3]
[402384301,1768669884184,-995.33,0.00017534,3]
[402384304,1768669884194,-500.0,0.00017534,3]
[402384306,1768669884204,-500.0,0.00017534,3]
[402384308,1768669884214,-500.0,0.00017534,3]
[402384309,1768669884224,-500.0,0.00017534,3]
[402384312,1768669884234,-500.0,0.00017534,3]
[402384314,1768669884243,-1195.06,0.00017534,3]
[402384315,1768669884253,-938.53,0.00017534,3]
[402384318,1768669884264,-500.0,0.00017534,3]
[402384320,1768669884275,-500.0,0.00017534,3]
[402384322,1768669884285,-500.0,0.00017534,3]
[402384324,1768669884294,-500.0,0.00017534,3]
[402384326,1768669884303,-500.0,0.00017534,3]
[402384328,1768669884312,-1163.03,0.00017534,3]
[402384329,1768669884322,-664.56,0.00017534,3]
[402384332,1768669884332,-500.0,0.00017534,3]
[402384334,1768669884341,-539.14,0.00017534,3]
[402384336,1768669884350,-271.88452189,0.00017534,3]
[402384338,1768669884359,-826.62,0.00017534,3]
[402384340,1768669884369,-1311.5,0.00017534,3]
[402384342,1768669884379,-500.0,0.00017534,3]
[402384344,1768669884388,-526.93,0.00017534,3]
[402384346,1768669884398,-826.22,0.00017534,3]
[402384348,1768669884407,-500.0,0.00017534,3]
[402384350,1768669884419,-500.0,0.00017534,3]
[402384351,1768669884428,-500.0,0.00017534,3]
[402384354,1768669884437,-665.83,0.00017534,3]
[402384356,1768669884447,-1437.78,0.00017534,3]
[402384358,1768669884458,-911.88,0.00017534,3]
[402384360,1768669884468,-744.04,0.00017534,3]
[402384362,1768669884477,-500.0,0.00017534,3]
[402384364,1768669884487,-760.56,0.00017534,3]
[402384366,1768669884496,-1617.66,0.00017534,3]
[402384368,1768669884506,-500.0,0.00017534,3]
[402384370,1768669884515,-989.16,0.00017534,3]
[402384372,1768669884525,-548.8,0.00017534,3]
[402384374,1768669884535,-1392.58,0.00017534,3]
[402384376,1768669884544,-500.0,0.00017534,3]
[402384378,1768669884556,-500.0,0.00017534,3]
[402384379,1768669884568,-500.0,0.00017534,3]
[402384381,1768669884578,-1290.77,0.00017534,3]
[402384383,1768669884587,-500.0,0.00017534,3]
[402384385,1768669884597,-1139.26,0.00017534,3]
[402384387,1768669884608,-500.0,0.00017534,3]
[402384389,1768669884617,-563.28,0.00017534,3]
[402384391,1768669884627,-1235.64,0.00017534,3]
[402384393,1768669884637,-1363.63,0.00017534,3]
[402384395,1768669884649,-500.0,0.00017534,3]
[402384397,1768669884659,-500.0,0.00017534,3]
[402384399,1768669884669,-584.78,0.00017534,3]
[402384401,1768669884679,-591.12,0.00017534,3]
[402384403,1768669884688,-500.0,0.00017534,3]
[402384405,1768669884697,-500.0,0.00017534,3]
[402384407,1768669884707,-500.0,0.00017534,3]
[402384410,1768669884718,-500.0,0.00017534,3]
[402384411,1768669884728,-500.0,0.00017534,3]
[402384414,1768669884738,-500.0,0.00017534,3]
[402384416,1768669884748,-500.0,0.00017534,3]
[402384417,1768669884758,-500.0,0.00017534,3]
[402384419,1768669884767,-541.3847786,0.00017534,3]
[402384421,1768669884776,-500.0,0.00017534,3]
[402384423,1768669884786,-659.9,0.00017534,3]
[402384425,1768669884796,-500.0,0.00017534,3]
[402384427,1768669884805,-562.53,0.00017534,3]
[402384430,1768669884815,-1216.62,0.00017534,3]
[402384432,1768669884825,-1459.54,0.00017534,3]
[402384434,1768669884836,-1408.31,0.00017534,3]
[402384435,1768669884846,-500.0,0.00017534,3]
[402384437,1768669884855,-500.0,0.00017534,3]
[402384439,1768669884865,-1004.35,0.00017534,3]
[402384441,1768669884874,-2141.92,0.00017534,3]
[402384443,1768669884884,-500.0,0.00017534,3]
[402384445,1768669884894,-500.0,0.00017534,3]
[402384447,1768669884903,-1392.79,0.00017534,3]
[402384449,1768669884913,-500.0,0.00017534,3]
[402384451,1768669884923,-1651.69,0.00017534,3]
[402384454,1768669884934,-489.41292271,0.00017534,3]
[402384456,1768669884944,-500.0,0.00017534,3]
[402384458,1768669884953,-500.0,0.00017534,3]
[402384460,1768669884963,-500.0,0.00017534,3]
[402384462,1768669884972,-500.0,0.00017534,3]
[402384464,1768669884982,-500.0,0.00017534,3]
[402384466,1768669884991,-1022.52,0.00017534,3]
[402384468,1768669885001,-890.63,0.00017534,3]
[402384470,1768669885011,-500.0,0.00017534,3]
[402384472,1768669885021,-524.68,0.00017534,3]
[402384474,1768669885031,-525.47,0.00017534,3]
[402384476,1768669885040,-500.0,0.00017534,3]
[402384478,1768669885050,-1952.81,0.00017534,3]
[402384480,1768669885061,-500.0,0.00017534,3]
[402384482,1768669885071,-702.75,0.00017534,3]
[402384484,1768669885081,-500.0,0.00017534,3]
[402384486,1768669885090,-1977.43,0.00017534,3]
[402384488,1768669885100,-633.32,0.00017534,3]
[402384490,1768669885110,-500.0,0.00017534,3]
[402384492,1768669885120,-500.0,0.00017534,3]
[402384494,1768669885130,-500.0,0.00017534,3]
[402384496,1768669885140,-769.6,0.00017534,3]
[402384498,1768669885149,-234.44653758,0.00017534,3]
[402384500,1768669885159,-500.0,0.00017534,3]
[402384502,1768669885169,-500.0,0.00017534,3]
[402384504,1768669885178,-500.0,0.00017534,3]
[402384506,1768669885188,-500.0,0.00017534,3]
[402384508,1768669885197,-500.0,0.00017534,3]
[402384510,1768669885207,-808.67,0.00017534,3]
[402384512,1768669885216,-500.0,0.00017534,3]
[402384514,1768669885226,-505.87,0.00017534,3]
[402384516,1768669885235,-500.0,0.00017534,3]
[402384518,1768669885246,-1351.71,0.00017534,3]
[402384520,1768669885255,-500.0,0.00017534,3]
[402384522,1768669885264,-1112.95,0.00017534,3]
[402384544,1768669885274,-1241.58,0.00017534,3]
[402384546,1768669885469,-500.0,0.00017534,3]
[402384548,1768669885478,-714.16,0.00017534,3]
[402384550,1768669885488,-1757.22,0.00017534,3]
[402384552,1768669885497,-500.0,0.00017534,3]
[402384554,1768669885506,-500.0,0.00017534,3]
[402384556,1768669885515,-856.76,0.00017534,3]
[402384558,1768669885524,-500.0,0.00017534,3]
[402384560,1768669885533,-576.09,0.00017534,3]
[402384562,1768669885543,-762.99,0.00017534,3]
[402384564,1768669885552,-1716.41,0.00017534,3]
[402384566,1768669885562,-974.44,0.00017534,3]
[402384568,1768669885573,-500.0,0.00017534,3]
[402384570,1768669885582,-500.0,0.00017534,3]
[402384572,1768669885591,-500.0,0.00017534,3]
[402384574,1768669885601,-500.0,0.00017534,3]
[402384576,1768669885611,-500.0,0.00017534,3]
[402384578,1768669885621,-500.0,0.00017534,3]
[402384580,1768669885630,-500.0,0.00017534,3]
[402384582,1768669885643,-500.0,0.00017534,3]
[402384584,1768669885652,-500.0,0.00017534,3]
[402384586,1768669885661,-500.0,0.00017534,3]
[402384588,1768669885670,-605.29,0.00017534,3]
[402384590,1768669885679,-500.0,0.00017534,3]
[402384591,1768669885688,-500.0,0.00017534,3]
[402384593,1768669885697,-500.0,0.00017534,3]
[402384595,1768669885707,-1502.15,0.00017534,3]
[402384598,1768669885716,-534.13,0.00017534,3]
[402384599,1768669885726,-778.71,0.00017534,3]
[402384601,1768669885736,-1453.27,0.00017534,3]
[402384603,1768669885746,-1503.68,0.00017534,3]
[402384605,1768669885756,-500.0,0.00017534,3]
[402384607,1768669885766,-500.0,0.00017534,3]
[402384609,1768669885775,-500.0,0.00017534,3]
[402384611,1768669885785,-500.0,0.00017534,3]
[402384613,1768669885795,-500.0,0.00017534,3]
[402384616,1768669885805,-7566.04,0.00017534,3]
[402384617,1768669885814,-2006.78,0.00017534,3]
[402384619,1768669885824,-2532.74,0.00017534,3]
[402384621,1768669885833,-709.42,0.00017534,3]
[402384623,1768669885842,-500.0,0.00017534,3]
[402384625,1768669885853,-500.0,0.00017534,3]
[402384628,1768669885864,-500.0,0.00017534,3]
[402384629,1768669885873,-876.59,0.00017534,3]
[402384631,1768669885883,-569.38190569,0.00017534,3]
[402384633,1768669885892,-500.0,0.00017534,3]
[402384635,1768669885902,-500.0,0.00017534,3]
[402384637,1768669885912,-1597.27,0.00017534,3]
[402384639,1768669885921,-500.0,0.00017534,3]
[402384641,1768669885931,-500.0,0.00017534,3]
[402384643,1768669885940,-530.80700199,0.00017534,3]
[402384645,1768669885949,-731.96,0.00017534,3]
[402384647,1768669885959,-500.0,0.00017534,3]
[402384649,1768669885968,-887.59,0.00017534,3]
[402384651,1768669885977,-500.0,0.00017534,3]
[402384653,1768669885986,-577.24,0.00017534,3]
[402384655,1768669885995,-771.67,0.00017534,3]
[402384657,1768669886004,-500.0,0.00017534,3]
[402384660,1768669886016,-500.0,0.00017534,3]
[402384662,1768669886025,-1494.01,0.00017534,3]
[402384664,1768669886034,-500.0,0.00017534,3]
[402384666,1768669886045,-806.92,0.00017534,3]
[402384668,1768669886055,-2025.2,0.00017534,3]
[402384670,1768669886065,-500.0,0.00017534,3]
[402384672,1768669886075,-500.0,0.00017534,3]
[402384674,1768669886084,-500.0,0.00017534,3]
[402384676,1768669886093,-582.23,0.00017534,3]
[402384678,1768669886102,-500.0,0.00017534,3]
[402384680,1768669886112,-877.12,0.00017534,3]
[402384682,1768669886122,-890.53,0.00017534,3]
[402384684,1768669886131,-1695.64,0.00017534,3]
[402384686,1768669886140,-648.78,0.00017534,3]
[402384688,1768669886150,-1396.54,0.00017534,3]
[402384690,1768669886159,-500.0,0.00017534,3]
[402384692,1768669886169,-822.65,0.00017534,3]
[402384694,1768669886178,-500.0,0.00017534,3]
[402384696,1768669886188,-1860.69,0.00017534,3]
[402384698,1768669886197,-563.95,0.00017534,3]
[402384700,1768669886207,-1121.41,0.00017534,3]
[402384702,1768669886216,-681.26,0.00017534,3]
[402384704,1768669886226,-500.0,0.00017534,3]
[402384706,1768669886236,-500.0,0.00017534,3]
[402384708,1768669886245,-1574.77,0.00017534,3]
[402384710,1768669886255,-500.0,0.00017534,3]
[402384712,1768669886264,-710.07,0.00017534,3]
[402384714,1768669886274,-593.25,0.00017534,3]
[402384716,1768669886283,-819.68,0.00017534,3]
[402384718,1768669886292,-547.02,0.00017534,3]
[402384720,1768669886302,-541.55,0.00017534,3]
[402384722,1768669886311,-898.93,0.00017534,3]
[402384724,1768669886320,-500.0,0.00017534,3]
[402384725,1768669886329,-500.0,0.00017534,3]
[402384728,1768669886339,-500.0,0.00017534,3]
[402384730,1768669886350,-514.7,0.00017534,3]
[402384731,1768669886359,-500.0,0.00017534,3]
[402384734,1768669886369,-1717.69,0.00017534,3]
[402384735,1768669886378,-1181.35,0.00017534,3]
[402384738,1768669886388,-500.0,0.00017534,3]
[402384739,1768669886397,-500.0,0.00017534,3]
[402384741,1768669886406,-870.07,0.00017534,3]
[402384744,1768669886416,-1177.53,0.00017534,3]
[402384746,1768669886425,-500.0,0.00017534,3]
[402384748,1768669886435,-500.0,0.00017534,3]
[402384750,1768669886445,-1477.98,0.00017534,3]
[402384751,1768669886455,-548.99,0.00017534,3]
[402384754,1768669886466,-1364.59,0.00017534,3]
[402384756,1768669886476,-500.0,0.00017534,3]
[402384758,1768669886485,-500.0,0.00017534,3]
[402384759,1768669886494,-1272.0,0.00017534,3]
[402384762,1768669886504,-500.0,0.00017534,3]
[402384764,1768669886513,-634.82538104,0.00017534,3]
[402384766,1768669886522,-500.0,0.00017534,3]
[402384768,1768669886532,-1023.93,0.00017534,3]
[402384769,1768669886541,-1022.84,0.00017534,3]
[402384772,1768669886551,-516.54,0.00017534,3]
[402384773,1768669886561,-568.07228824,0.00017534,3]
[402384775,1768669886575,-3403.79,0.00017534,3]
[402384777,1768669886584,-770.4,0.00017534,3]
[402384779,1768669886593,-1414.69,0.00017534,3]
[402384781,1768669886604,-500.0,0.00017534,3]
[402384783,1768669886614,-500.0,0.00017534,3]
[402384785,1768669886623,-690.86,0.00017534,3]
[402384787,1768669886633,-743.92,0.00017534,3]
[402384789,1768669886643,-545.24616728,0.00017534,3]
[402384791,1768669886652,-500.0,0.00017534,3]
[402384793,1768669886663,-1368.68,0.00017534,3]
[402384795,1768669886673,-692.37,0.00017534,3]
[402384797,1768669886683,-500.0,0.00017534,3]
[402384799,1768669886693,-500.0,0.00017534,3]
[402384801,1768669886702,-500.0,0.00017534,3]
[402384803,1768669886712,-674.52,0.00017534,3]
[402384805,1768669886721,-547.26,0.00017534,3]
[402384807,1768669886731,-500.0,0.00017534,3]
[402384809,1768669886741,-500.0,0.00017534,3]
[402384811,1768669886750,-500.0,0.00017534,3]
[402384813,1768669886760,-500.0,0.00017534,3]
[402384815,1768669886770,-774.57,0.00017534,3]
[402384817,1768669886779,-1114.84,0.00017534,3]
[402384819,1768669886788,-500.0,0.00017534,3]
[402384821,1768669886798,-500.0,0.00017534,3]
[402384823,1768669886807,-260.63382945,0.00017534,3]
[402384824,1768669886815,-500.0,0.00017534,3]
[402384826,1768669886824,-14376.21,0.00017534,3]
[402384828,1768669886833,-1568.81,0.00017534,3]
[402384830,1768669886843,-1380.77,0.00017534,3]
[402384832,1768669886852,-500.0,0.00017534,3]
[402384834,1768669886862,-500.0,0.00017534,3]
[402384836,1768669886872,-500.0,0.00017534,3]
[402384838,1768669886882,-680.81,0.00017534,3]
[402384840,1768669886892,-702.8,0.00017534,3]
[402384842,1768669886902,-558.44,0.00017534,3]
[402384844,1768669886911,-1285.11,0.00017534,3]
[402384846,1768669886921,-500.0,0.00017534,3]
[402384848,1768669886930,-1541.54,0.00017534,3]
[402384850,1768669886940,-885.92,0.00017534,3]
[402384852,1768669886949,-552.93,0.00017534,3]
[402384854,1768669886959,-500.0,0.00017534,3]
[402384856,1768669886968,-500.0,0.00017534,3]
[402384858,1768669886978,-500.0,0.00017534,3]
[402384860,1768669886987,-500.0,0.00017534,3]
[402384862,1768669886996,-539.86,0.00017534,3]
[402384864,1768669887006,-1422.11,0.00017534,3]
[402384866,1768669887016,-895.54,0.00017534,3]
[402384867,1768669887026,-581.61,0.00017534,3]
[402384869,1768669887036,-1148.17,0.00017534,3]
[402384871,1768669887045,-878.96,0.00017534,3]
[402384873,1768669887054,-364.13507716,0.00017534,3]
[402384875,1768669887063,-2589.16,0.00017534,3]
[402384877,1768669887073,-500.0,0.00017534,3]
[402384879,1768669887082,-500.0,0.00017534,3]
[402384881,1768669887091,-500.0,0.00017534,3]
[402384883,1768669887100,-693.13,0.00017534,3]